bitfinex/quotes_SOLUSD_20240624
["timestamp","ask_amount","ask_price","bid_price","bid_amount"]
[1719216099347,0.35460993,125.32,125.25,45.0]
[1719216100869,0.35460993,125.32,125.22,273.891258]
[1719216101168,0.35460993,125.32,125.22,305.894575]
[1719216101363,0.35460993,125.32,125.23,7.9852]
[1719216102264,0.35460993,125.32,125.24,45.0]
[1719216103571,0.35460993,125.32,125.23,45.0]
[1719216104549,0.35460993,125.32,125.22,305.894575]
[1719216104949,0.35460993,125.32,125.22,273.891558]
[1719216105163,0.35460993,125.32,125.23,15.2702]
[1719216105770,15.753,125.31,125.23,15.2702]
[1719216105967,15.753,125.31,125.22,0.856458]
[1719216105968,43.273,125.31,125.22,0.856458]
[1719216106154,0.70921986,125.3,125.22,0.856458]
[1719216108274,0.70921986,125.3,125.23,7.9849]
[1719216108570,0.70921986,125.3,125.24,45.0]
[1719216108868,0.70921986,125.3,125.26,7.9833]
[1719216109075,0.70921986,125.3,125.27,45.0]
[1719216110568,0.70921986,125.3,125.26,45.0]
[1719216112069,0.70921986,125.3,125.25,45.0]
[1719216112551,0.70921986,125.3,125.26,7.983]
[1719216112752,0.70921986,125.3,125.27,45.0]
[1719216113173,0.70921986,125.3,125.26,45.0]
[1719216116685,0.70921986,125.3,125.26,52.9831]
[1719216116975,0.70921986,125.3,125.26,45.0]
[1719216117550,0.70921986,125.3,125.26,52.9832]
[1719216117982,0.70921986,125.3,125.26,45.0]
[1719216118165,0.70921986,125.3,125.28,7.9818]
[1719216118363,0.70921986,125.3,125.29,45.0]
[1719216119471,0.70921986,125.3,125.28,45.0]
[1719216120377,0.70921986,125.3,125.28,52.982]
[1719216120578,0.70921986,125.3,125.29,7.9814]
[1719216120782,0.70921986,125.3,125.29,52.9814]
[1719216121077,15.574,125.45,125.34,7.9777]
[1719216121277,15.574,125.41,125.35,45.0]
[1719216121481,15.574,125.45,125.37,7.9761]
[1719216122079,15.574,125.45,125.37,39.943894]
[1719216122969,15.574,125.45,125.39,7.9749]
[1719216123379,15.574,125.45,125.4,45.0]
[1719216123576,8.22298168,125.55,125.4,52.9742]
[1719216123779,8.22298168,125.55,125.42,7.9727]
[1719216123780,16.0306,125.54,125.42,7.9727]
[1719216123957,16.0306,125.54,125.43,45.0]
[1719216124357,16.0306,125.54,125.42,45.0]
[1719216124557,16.0306,125.54,125.42,52.9731]
[1719216125380,16.0306,125.54,125.42,45.0]
[1719216125963,16.0306,125.54,125.41,52.9737]
[1719216126571,16.0306,125.54,125.41,45.0]
[1719216126882,16.0306,125.54,125.44,7.9718]
[1719216127082,16.0306,125.54,125.45,45.0]
[1719216127279,16.0306,125.54,125.45,52.9712]
[1719216127675,16.0306,125.54,125.46,7.9706]
[1719216127973,16.0306,125.54,125.47,45.0]
[1719216128357,16.0306,125.54,125.46,45.0]
[1719216128761,16.0306,125.54,125.45,45.0]
[1719216129260,16.0306,125.54,125.45,52.9712]
[1719216129482,43.5506,125.54,125.45,45.0]
[1719216129677,27.52,125.52,125.4,6.3192]
[1719216129867,15.825,125.51,125.4,6.3192]
[1719216130285,15.825,125.51,125.4,14.2936]
[1719216131382,15.825,125.51,125.41,45.0]
[1719216131892,15.825,125.51,125.43,7.9724]
[1719216132109,15.825,125.51,125.44,45.0]
[1719216132803,15.825,125.51,125.44,52.9718]
[1719216133095,15.825,125.51,125.44,45.0]
[1719216133589,15.825,125.51,125.44,7.9715]
[1719216133795,15.825,125.51,125.45,45.0]
[1719216134161,15.825,125.51,125.44,45.0]
[1719216135085,15.825,125.51,125.44,52.9718]
[1719216135974,15.825,125.51,125.44,45.0]
[1719216137177,15.825,125.51,125.43,45.0]
[1719216138192,15.825,125.51,125.43,52.9722]
[1719216138387,15.825,125.51,125.43,45.0]
[1719216139995,15.825,125.51,125.4,31.958492]
[1719216141207,15.825,125.51,125.41,1.84660591]
[1719216141446,15.825,125.51,125.4,31.958492]
[1719216141581,15.825,125.51,125.4,39.932592]
[1719216142092,15.825,125.51,125.4,31.958492]
[1719216142481,257.99,125.55,125.4,15.291892]
[1719216142482,10.0,125.48,125.4,15.291892]
[1719216142679,16.1694,125.47,125.4,15.291892]
[1719216144982,16.1694,125.47,125.35,7.9772]
[1719216145207,16.1694,125.47,125.36,7.9768]
[1719216145537,16.1694,125.47,125.35,7.9773]
[1719216145712,16.1694,125.47,125.34,24.2786]
[1719216145887,16.1694,125.47,125.35,45.0]
[1719216146483,16.1694,125.47,125.34,16.3006]
[1719216146687,15.8823,125.45,125.3,6.3662]
[1719216146893,15.8823,125.45,125.31,16.3006]
[1719216147196,15.8823,125.45,125.31,24.2807]
[1719216147703,15.8823,125.45,125.31,16.3006]
[1719216148091,15.8823,125.45,125.32,45.0]
[1719216150720,15.8823,125.45,125.32,52.9792]
[1719216151086,15.8823,125.45,125.32,45.0]
[1719216152810,30.0,125.44,125.32,45.0]
[1719216153111,15.0783,125.43,125.32,45.0]
[1719216154398,15.0783,125.43,125.32,52.979]
[1719216154598,15.0783,125.43,125.32,45.0]
[1719216157324,15.0783,125.43,125.32,52.9794]
[1719216157498,15.0783,125.43,125.33,7.9788]
[1719216157702,15.0783,125.43,125.34,45.0]
[1719216158198,15.0783,125.43,125.33,45.0]
[1719216159997,15.0783,125.43,125.33,52.9788]
[1719216160293,15.0783,125.43,125.34,7.978]
[1719216160495,15.0783,125.43,125.35,45.0]
[1719216160915,15.0783,125.43,125.34,52.9782]
[1719216161495,15.0783,125.43,125.35,7.9774]
[1719216161695,15.0783,125.43,125.36,45.0]
[1719216163113,15.0783,125.43,125.35,45.0]
[1719216163503,15.0783,125.43,125.3,19.9517]
[1719216163716,15.0783,125.43,125.31,24.2803]
[1719216163999,15.0783,125.43,125.32,7.9791]
[1719216164225,0.35460993,125.42,125.33,7.9788]
[1719216164423,0.35460993,125.42,125.32,7.9792]
[1719216164808,0.35460993,125.42,125.33,45.0]
[1719216165115,0.35460993,125.42,125.34,7.9779]
[1719216165324,0.35460993,125.42,125.35,45.0]
[1719216166417,0.35460993,125.42,125.35,52.9773]
[1719216166907,0.35460993,125.42,125.35,45.0]
[1719216167112,0.35460993,125.42,125.37,7.976]
[1719216167327,0.35460993,125.42,125.38,45.0]
[1719216167813,0.35460993,125.42,125.37,45.0]
[1719216169432,0.35460993,125.42,125.37,52.9762]
[1719216169737,0.35460993,125.42,125.38,0.17]
[1719216170041,0.35460993,125.42,125.38,20.17]
[1719216170212,0.35460993,125.42,125.41,7.9738]
[1719216170413,0.35460993,125.42,125.41,52.9738]
[1719216170836,0.35460993,125.42,125.41,45.0]
[1719216171230,0.35460993,125.42,125.4,45.0]
[1719216174232,0.35460993,125.42,125.39,45.0]
[1719216174737,0.35460993,125.42,125.39,52.975]
[1719216176259,0.35460993,125.42,125.35,24.1505]
[1719216176553,0.35460993,125.42,125.34,14.0273]
[1719216176726,0.35460993,125.42,125.34,6.0493]
[1719216177030,0.35460993,125.42,125.35,7.9775]
[1719216177337,16.309,125.41,125.34,7.9781]
[1719216177751,0.35460993,125.4,125.34,7.9781]
[1719216178133,0.35460993,125.4,125.35,7.9776]
[1719216178340,0.35460993,125.4,125.35,7.9773]
[1719216178953,0.35460993,125.4,125.36,45.0]
[1719216181773,0.35460993,125.4,125.33,7.9787]
[1719216181952,0.35460993,125.4,125.31,275.3006]
[1719216182143,16.3013,125.39,125.31,275.3006]
[1719216182347,16.3013,125.39,125.31,259.0]
[1719216182670,0.35460993,125.38,125.31,259.0]
[1719216183948,0.35460993,125.38,125.32,45.0]
[1719216184270,0.35460993,125.38,125.28,7.9818]
[1719216184571,0.35460993,125.38,125.29,7.9814]
[1719216185165,0.35460993,125.38,125.3,7.9805]
[1719216185468,0.35460993,125.38,125.31,7.9801]
[1719216185651,0.35460993,125.38,125.34,7.9777]
[1719216185859,0.35460993,125.38,125.35,45.0]
[1719216186353,0.35460993,125.38,125.34,52.9782]
[1719216186762,0.35460993,125.38,125.35,7.9771]
[1719216186967,0.35460993,125.38,125.36,45.0]
[1719216187347,0.35460993,125.38,125.35,45.0]
[1719216187546,0.35460993,125.38,125.35,52.9775]
[1719216188465,0.35460993,125.38,125.35,45.0]
[1719216189385,0.35460993,125.38,125.35,52.9775]
[1719216189756,0.35460993,125.38,125.35,45.0]
[1719216190667,0.35460993,125.38,125.35,52.9776]
[1719216192974,0.35460993,125.38,125.35,45.0]
[1719216193166,0.35460993,125.38,125.36,7.9767]
[1719216193348,0.35460993,125.38,125.37,73.1463]
[1719216193552,0.35460993,125.38,125.37,73.3163]
[1719216194380,16.3417,125.46,125.37,73.3163]
[1719216194586,16.2927,125.5,125.38,0.17]
[1719216194752,16.2927,125.57,125.43,15.4721]
[1719216194959,16.2927,125.57,125.46,7.9705]
[1719216195259,16.2927,125.57,125.47,45.0]
[1719216195458,16.2927,125.57,125.47,52.9696]
[1719216195668,16.2927,125.57,125.47,45.0]
[1719216196061,16.2927,125.57,125.47,52.9698]
[1719216196263,16.2927,125.57,125.48,7.9692]
[1719216196464,16.2927,125.57,125.49,45.0]
[1719216197284,16.2927,125.57,125.48,45.0]
[1719216199078,16.2927,125.57,125.48,52.9693]
[1719216199777,16.2927,125.57,125.48,45.0]
[1719216200167,16.2927,125.57,125.47,45.0]
[1719216200367,16.2927,125.57,125.49,7.9685]
[1719216200576,16.2927,125.57,125.5,45.0]
[1719216200875,16.2927,125.57,125.49,45.0]
[1719216201069,16.2927,125.57,125.48,45.0]
[1719216201691,16.2927,125.57,125.47,45.0]
[1719216202186,16.2927,125.57,125.47,52.9699]
[1719216202368,16.2927,125.57,125.47,45.0]
[1719216204588,16.2927,125.57,125.44,27.9715]
[1719216204896,16.2927,125.57,125.42,7.9728]
[1719216205082,16.2927,125.57,125.42,35.9443]
[1719216205387,15.5452,125.55,125.41,7.9736]
[1719216205958,15.5452,125.55,125.42,7.9732]
[1719216206288,15.5452,125.55,125.41,19.9341]
[1719216206489,15.5452,125.55,125.44,7.9715]
[1719216206984,15.5452,125.55,125.43,7.9722]
[1719216207189,15.5452,125.55,125.42,7.9729]
[1719216207392,15.5452,125.55,125.44,7.9715]
[1719216207682,15.5452,125.55,125.45,45.0]
[1719216207886,15.5452,125.55,125.44,45.0]
[1719216209993,15.5452,125.55,125.4,31.957258]
[1719216210173,15.2407,125.53,125.39,266.9746]
[1719216210486,15.2407,125.53,125.39,7.9746]
[1719216210877,15.2407,125.53,125.4,7.9743]
[1719216211069,15.2407,125.53,125.41,7.9737]
[1719216211783,15.2407,125.53,125.42,45.0]
[1719216213098,15.2407,125.53,125.41,45.0]
[1719216213273,15.2407,125.53,125.37,24.4689]
[1719216213686,15.2407,125.53,125.37,7.9762]
[1719216214388,15.2407,125.53,125.37,31.965601]
[1719216214583,15.2407,125.53,125.38,45.0]
[1719216214786,15.2407,125.53,125.38,53.1453]
[1719216214978,15.2407,125.53,125.4,7.9742]
[1719216215183,15.2407,125.53,125.41,45.0]
[1719216216078,15.2407,125.53,125.4,45.0]
[1719216217172,15.2407,125.53,125.39,52.975]
[1719216217377,15.2407,125.53,125.39,45.0]
[1719216218573,15.2407,125.53,125.43,7.9725]
[1719216218888,15.2407,125.53,125.44,45.0]
[1719216220191,15.2407,125.53,125.45,1.59004549]
[1719216221484,15.2407,125.53,125.44,45.0]
[1719216222776,15.2407,125.53,125.37,31.965601]
[1719216222976,15.2407,125.53,125.38,7.9756]
[1719216223192,15.2407,125.53,125.39,7.9747]
[1719216223575,15.2407,125.53,125.38,7.9755]
[1719216224176,15.2407,125.53,125.39,45.0]
[1719216224496,15.2101,125.51,125.39,45.0]
[1719216224994,15.2101,125.49,125.39,45.0]
[1719216225377,15.2101,125.47,125.39,45.0]
[1719216225791,0.35460993,125.46,125.37,7.9763]
[1719216226098,0.35460993,125.46,125.37,7.9762]
[1719216226397,0.35460993,125.46,125.33,314.3284]
[1719216226398,0.35460993,125.46,125.39,7.9749]
[1719216226894,0.35460993,125.46,125.36,19.9421]
[1719216227070,0.35460993,125.46,125.39,7.9748]
[1719216227276,0.35460993,125.46,125.4,45.0]
[1719216227879,0.35460993,125.46,125.4,52.9744]
[1719216228385,0.35460993,125.46,125.4,45.0]
[1719216229691,0.35460993,125.46,125.39,45.0]
[1719216230498,0.35460993,125.46,125.39,52.975]
[1719216230887,0.35460993,125.46,125.39,45.0]
[1719216231395,0.35460993,125.46,125.39,52.9749]
[1719216233580,0.35460993,125.46,125.39,45.0]
[1719216233999,0.35460993,125.46,125.39,52.975]
[1719216235694,0.35460993,125.46,125.39,45.0]
[1719216235879,0.35460993,125.46,125.4,7.9744]
[1719216236075,0.35460993,125.46,125.41,45.0]
[1719216236275,0.35460993,125.46,125.39,45.0]
[1719216236587,0.35460993,125.46,125.38,52.9753]
[1719216237590,0.35460993,125.46,125.38,45.0]
[1719216238480,0.35460993,125.46,125.35,51.911546]
[1719216238701,15.9962,125.45,125.35,31.968046]
[1719216238913,15.9962,125.45,125.32,391.927]
[1719216238914,15.9962,125.45,125.32,14.1062]
[1719216239210,15.9962,125.43,125.34,15.9962]
[1719216239602,0.08844365,125.42,125.34,15.9962]
[1719216240186,0.08844365,125.42,125.35,45.0]
[1719216241089,0.08844365,125.42,125.34,15.9962]
[1719216242410,0.05612365,125.42,125.32,14.1062]
[1719216242910,0.05612365,125.42,125.32,23.9754]
[1719216243291,0.05612365,125.42,125.33,45.0]
[1719216243715,0.05612365,125.42,125.33,52.9788]
[1719216244209,0.05612365,125.42,125.33,45.0]
[1719216244514,0.05612365,125.42,125.32,23.9754]
[1719216244515,15.1455,125.41,125.32,15.9962]
[1719216244706,15.1455,125.41,125.3,7.9804]
[1719216245009,16.5877,125.39,125.29,7.9812]
[1719216245511,0.32228993,125.38,125.29,7.9812]
[1719216245899,0.32228993,125.38,125.3,7.9805]
[1719216246290,0.32228993,125.38,125.28,31.987255]
[1719216246495,27.85228993,125.38,125.28,31.987255]
[1719216246695,27.85228993,125.38,125.29,45.0]
[1719216246900,27.85228993,125.38,125.28,45.0]
[1719216247106,27.85228993,125.38,125.28,72.85229]
[1719216247299,0.32228993,125.38,125.28,72.85229]
[1719216247811,0.32228993,125.38,125.32,7.9792]
[1719216248002,0.32228993,125.38,125.33,45.0]
[1719216248816,0.32228993,125.38,125.33,52.9787]
[1719216249514,0.32228993,125.38,125.33,45.0]
[1719216250097,0.32228993,125.38,125.32,45.0]
[1719216252005,0.32228993,125.38,125.29,7.9811]
[1719216252720,0.32228993,125.38,125.3,7.9806]
[1719216253437,0.32228993,125.38,125.31,45.0]
[1719216254719,0.32228993,125.38,125.3,45.0]
[1719216255520,0.32228993,125.38,125.29,45.0]
[1719216255727,0.32228993,125.38,125.31,7.9797]
[1719216255911,0.32228993,125.38,125.32,45.0]
[1719216256229,0.32228993,125.38,125.34,7.9778]
[1719216256524,0.32228993,125.38,125.35,45.0]
[1719216256932,0.32228993,125.38,125.34,45.0]
[1719216257226,0.32228993,125.38,125.37,7.9763]
[1719216257421,0.32228993,125.38,125.37,52.9763]
[1719216259435,0.32228993,125.38,125.37,45.0]
[1719216263334,0.32228993,125.38,125.37,52.9763]
[1719216264231,0.32228993,125.38,125.37,79.6573]
[1719216266108,15.2132,125.47,125.39,7.9748]
[1719216267636,15.2132,125.47,125.4,7.9742]
[1719216267830,15.2132,125.47,125.41,7.9736]
[1719216268217,15.2132,125.47,125.42,45.0]
[1719216270728,15.2132,125.47,125.41,45.0]
[1719216272118,15.2132,125.47,125.41,52.9737]
[1719216274233,15.2132,125.47,125.41,45.0]
[1719216274442,15.2132,125.47,125.4,15.2132]
[1719216275818,15.2132,125.47,125.41,45.0]
[1719216281151,15.2132,125.47,125.43,7.9725]
[1719216281330,15.2132,125.47,125.44,45.0]
[1719216282226,15.2132,125.47,125.43,45.0]
[1719216282821,15.5539,125.51,125.43,52.9724]
[1719216283929,15.5539,125.51,125.44,0.88844027]
[1719216284332,0.08844365,125.5,125.44,0.88844027]
[1719216284539,0.08844365,125.5,125.45,7.9712]
[1719216284727,0.08844365,125.5,125.46,45.88829864]
[1719216286728,0.08844365,125.5,125.47,2.48030011]
[1719216288131,0.08844365,125.5,125.47,10.45010011]
[1719216288331,0.08844365,125.5,125.48,65.34]
[1719216288530,0.08844365,125.5,125.49,7.9687]
[1719216288765,0.08844365,125.5,125.49,52.9687]
[1719216289262,0.08844365,125.5,125.49,45.0]
[1719216292554,0.08844365,125.5,125.48,45.0]
[1719216293236,0.08844365,125.5,125.47,45.0]
[1719216293838,0.08844365,125.5,125.46,45.0]
[1719216295159,0.08844365,125.5,125.46,52.9706]
[1719216295551,0.08844365,125.5,125.47,7.97]
[1719216295753,0.08844365,125.5,125.48,52.9693]
[1719216296056,0.08844365,125.5,125.48,45.0]
[1719216296758,0.08844365,125.5,125.49,1.00383529]
[1719216297958,0.08844365,125.5,125.49,8.97253529]
[1719216298160,0.08844365,125.5,125.49,53.97253529]
[1719216298863,0.08844365,125.5,125.49,74.14253529]
[1719216299044,0.08844365,125.5,125.49,74.31253529]
[1719216300264,0.08844365,125.5,125.49,73.97253529]
[1719216300443,0.08844365,125.5,125.49,45.0]
[1719216300953,0.08844365,125.5,125.49,52.9687]
[1719216301155,0.08844365,125.5,125.49,45.0]
[1719216301354,0.08844365,125.5,125.49,52.9687]
[1719216302947,15.365,125.59,125.52,7.9662]
[1719216303201,15.365,125.59,125.55,7.9649]
[1719216303356,15.365,125.59,125.53,45.0]
[1719216303554,15.365,125.59,125.51,20.0875]
[1719216303555,15.365,125.59,125.55,7.9647]
[1719216303766,15.365,125.59,125.56,45.0]
[1719216304573,15.365,125.59,125.55,45.0]
[1719216305161,15.365,125.59,125.56,1.25187909]
[1719216305873,15.365,125.59,125.55,45.0]
[1719216307046,15.365,125.59,125.54,45.0]
[1719216307457,15.365,125.59,125.54,52.9655]
[1719216308269,15.365,125.59,125.54,45.0]
[1719216308661,15.365,125.59,125.54,52.9654]
[1719216309782,15.365,125.59,125.55,7.9643]
[1719216309960,16.6185,125.65,125.56,45.0]
[1719216310376,16.6185,125.65,125.57,7.9633]
[1719216310705,16.6185,125.65,125.58,45.0]
[1719216312852,27.53,125.64,125.54,7.965]
[1719216313052,27.53,125.64,125.51,42.4511]
[1719216313564,27.53,125.64,125.55,7.9644]
[1719216314081,27.53,125.64,125.54,7.9654]
[1719216314256,27.53,125.64,125.55,45.0]
[1719216314458,30.0,125.58,125.55,45.0]
[1719216314890,27.53,125.64,125.56,7.964]
[1719216315076,27.53,125.64,125.57,52.9634]
[1719216315274,27.53,125.64,125.58,45.0]
[1719216315594,30.0,125.59,125.58,45.0]
[1719216315766,27.53,125.64,125.57,52.9634]
[1719216316168,16.6185,125.65,125.58,7.9629]
[1719216316386,16.6185,125.65,125.59,45.0]
[1719216316683,30.0,125.6,125.57,52.9633]
[1719216316871,16.6185,125.65,125.57,52.9633]
[1719216317376,16.6185,125.65,125.57,45.0]
[1719216318167,16.6185,125.65,125.56,45.0]
[1719216318782,16.6185,125.65,125.56,7.9637]
[1719216319165,16.6185,125.65,125.55,7.9646]
[1719216319369,16.6185,125.65,125.54,7.9653]
[1719216319678,16.6185,125.65,125.53,19.9141]
[1719216319679,16.6185,125.65,125.55,7.9645]
[1719216319895,16.6185,125.65,125.56,7.9642]
[1719216320067,16.6185,125.65,125.56,7.9639]
[1719216320575,16.6185,125.65,125.56,24.5824]
[1719216320777,16.6185,125.65,125.57,45.0]
[1719216322996,16.6185,125.65,125.56,24.5822]
[1719216322997,27.53,125.64,125.56,16.6185]
[1719216323293,16.0082,125.63,125.51,42.4518]
[1719216323793,16.0082,125.63,125.53,7.9658]
[1719216324182,16.0082,125.63,125.52,27.53]
[1719216324396,16.0082,125.63,125.51,7.9671]
[1719216324599,16.0082,125.63,125.5,16.0082]
[1719216324977,16.0082,125.63,125.5,23.9762]
[1719216325800,16.0082,125.63,125.51,45.0]
[1719216326102,16.0082,125.63,125.51,52.9674]
[1719216326392,16.0082,125.63,125.51,45.0]
[1719216330302,16.0082,125.63,125.52,7.9662]
[1719216330473,16.0082,125.63,125.53,45.0]
[1719216330676,16.0082,125.63,125.51,45.0]
[1719216331094,16.0082,125.63,125.51,52.9674]
[1719216331298,16.0082,125.63,125.51,52.9672]
[1719216331892,16.0082,125.63,125.51,45.0]
[1719216332708,16.5261,125.58,125.51,45.0]
[1719216333022,16.5261,125.58,125.51,52.9673]
[1719216334507,16.5261,125.58,125.52,7.9664]
[1719216334717,16.5261,125.58,125.53,45.0]
[1719216336390,16.5261,125.58,125.52,45.0]
[1719216336798,16.5261,125.58,125.52,52.9666]
[1719216337302,16.5261,125.58,125.53,7.9661]
[1719216337473,16.5261,125.58,125.54,45.0]
[1719216337899,16.5261,125.58,125.53,45.0]
[1719216339778,16.5261,125.58,125.53,52.9656]
[1719216340591,25.6861,125.58,125.53,52.9656]
[1719216341502,9.16,125.57,125.53,45.0]
[1719216341997,9.16,125.56,125.53,45.0]
[1719216342202,9.16,125.56,125.52,45.0]
[1719216343211,9.16,125.56,125.52,52.9667]
[1719216343689,9.16,125.56,125.52,69.4928]
[1719216345316,9.16,125.57,125.53,7.9659]
[1719216345622,16.5261,125.58,125.54,52.9654]
[1719216345918,25.6861,125.58,125.55,45.0]
[1719216346495,16.5261,125.58,125.54,45.0]
[1719216346694,25.6861,125.58,125.54,45.0]
[1719216347704,16.1962,125.61,125.56,7.9641]
[1719216347905,16.1962,125.61,125.57,45.0]
[1719216348109,25.3562,125.61,125.57,45.0]
[1719216348502,16.1962,125.61,125.57,45.0]
[1719216348705,9.16,125.6,125.57,45.0]
[1719216350094,9.16,125.6,125.58,3.78159729]
[1719216350720,16.1962,125.61,125.58,3.78159729]
[1719216350901,9.16,125.6,125.58,3.78159729]
[1719216351302,9.16,125.59,125.56,16.1962]
[1719216351499,9.16,125.57,125.51,17.1269]
[1719216351812,9.16,125.56,125.51,17.1269]
[1719216352325,9.16,125.56,125.51,7.9669]
[1719216352640,16.1962,125.61,125.5,16.1962]
[1719216352933,15.5756,125.57,125.5,16.1962]
[1719216353716,15.5756,125.57,125.5,24.1642]
[1719216354122,15.5756,125.57,125.51,45.0]
[1719216354526,9.16,125.54,125.51,45.0]
[1719216354712,15.5756,125.57,125.5,24.1642]
[1719216355208,15.5756,125.57,125.5,16.1962]
[1719216356221,15.5756,125.57,125.5,24.1642]
[1719216356425,15.5756,125.57,125.51,45.0]
[1719216357108,15.5756,125.57,125.5,16.1962]
[1719216357310,15.5756,125.57,125.48,7.9692]
[1719216358108,15.5756,125.57,125.49,7.9686]
[1719216358623,15.5756,125.57,125.5,45.0]
[1719216359136,15.5756,125.57,125.5,7.9679]
[1719216359310,15.5756,125.57,125.51,45.0]
[1719216359919,15.5756,125.57,125.5,45.0]
[1719216361534,15.5756,125.57,125.49,45.0]
[1719216362108,15.5756,125.57,125.48,45.0]
[1719216362613,15.5756,125.57,125.48,52.9692]
[1719216363019,15.5756,125.57,125.47,27.48]
[1719216363328,15.5756,125.57,125.44,7.9714]
[1719216363540,15.9702,125.51,125.46,15.5756]
[1719216364419,30.0,125.49,125.46,15.5756]
[1719216364834,30.0,125.49,125.42,22.4237]
[1719216365024,30.0,125.49,125.4,19.936]
[1719216365217,30.0,125.49,125.41,30.0]
[1719216365413,30.0,125.49,125.42,7.973]
[1719216366315,30.0,125.49,125.43,45.0]
[1719216367035,30.0,125.49,125.43,52.9724]
[1719216367427,30.0,125.49,125.43,45.0]
[1719216369334,30.0,125.49,125.42,7.973]
[1719216370335,30.0,125.49,125.4,30.0]
[1719216370533,30.0,125.49,125.41,45.0]
[1719216371015,30.0,125.49,125.4,45.0]
[1719216371340,15.9264,125.48,125.4,52.9743]
[1719216371533,45.9264,125.48,125.4,52.9743]
[1719216372640,30.0,125.47,125.4,52.9743]
[1719216374043,30.0,125.47,125.41,7.9737]
[1719216374249,30.0,125.47,125.42,45.0]
[1719216374919,30.0,125.47,125.41,45.0]
[1719216375548,30.0,125.47,125.39,30.0]
[1719216375726,30.0,125.47,125.37,7.9761]
[1719216376120,30.0,125.47,125.37,37.9761]
[1719216376319,30.0,125.47,125.38,7.9756]
[1719216376857,57.48,125.47,125.37,7.9763]
[1719216377520,16.4345,125.46,125.36,37.9768]
[1719216377722,30.0,125.44,125.35,30.5701]
[1719216378543,30.0,125.44,125.35,62.540997]
[1719216378722,30.0,125.44,125.35,30.5701]
[1719216379038,30.0,125.44,125.35,60.5701]
[1719216379441,30.0,125.44,125.36,7.9765]
[1719216379636,30.0,125.44,125.38,7.9751]
[1719216379939,30.0,125.44,125.39,45.0]
[1719216380114,16.4345,125.46,125.39,45.0]
[1719216380115,30.0,125.45,125.39,45.0]
[1719216381037,30.0,125.45,125.35,72.5366]
[1719216381038,30.0,125.45,125.38,45.0]
[1719216381233,30.0,125.45,125.37,45.0]
[1719216381425,16.4345,125.46,125.36,45.0]
[1719216381840,16.4345,125.46,125.34,7.9782]
[1719216383035,16.5593,125.5,125.43,7.9722]
[1719216383349,16.5593,125.5,125.45,7.9708]
[1719216383517,16.5593,125.5,125.46,45.0]
[1719216384225,16.5593,125.5,125.45,45.0]
[1719216384628,16.5593,125.5,125.44,45.0]
[1719216384936,16.5593,125.5,125.43,45.0]
[1719216386126,16.5593,125.5,125.44,7.9717]
[1719216386446,16.5593,125.5,125.45,48.42974623]
[1719216386822,16.5593,125.5,125.45,45.0]
[1719216387022,16.5593,125.5,125.45,61.5593]
[1719216387526,16.5593,125.5,125.45,69.5303]
[1719216387925,16.5593,125.5,125.46,1.59160817]
[1719216388544,15.1942,125.54,125.45,61.5593]
[1719216388731,15.1942,125.54,125.48,7.9689]
[1719216389061,15.1942,125.54,125.49,45.0]